bitfinex-derivatives/quotes_SOLF0:USTF0_20260226
["timestamp","ask_amount","ask_price","bid_price","bid_amount"]
[1772129992498,4.07698868,85.055,85.015,10.586]
[1772129993300,3.18503682,85.05,85.015,10.586]
[1772129993902,3.18503682,85.05,85.008,10.5868]
[1772129995200,3.18539585,85.05,85.008,10.5868]
[1772129995597,3.18539585,85.04,84.986,3.84643739]
[1772129995801,4.07698868,85.029,84.986,3.84643739]
[1772129996902,4.07698868,85.029,84.993,10.5887]
[1772129998502,10.5846,85.027,84.986,3.84643739]
[1772130000908,10.5846,85.027,84.98,3.18539585]
[1772130000909,4.07698868,85.019,84.977,10.5907]
[1772130001108,4.07698868,85.019,84.972,3.84643739]
[1772130001309,4.07698868,85.019,84.941,21.1905]
[1772130001310,4.07698868,84.999,84.941,3.84643739]
[1772130001705,3.18539585,84.98,84.941,3.84643739]
[1772130001905,3.18539585,84.98,84.93,3.18539585]
[1772130002111,3.18539585,84.98,84.93,7.03183324]
[1772130002313,4.07698868,84.978,84.931,10.5964]
[1772130002513,3.18539585,84.97,84.931,10.5964]
[1772130003212,4.07698868,84.978,84.938,10.5956]
[1772130003510,4.07698868,84.991,84.938,3.84643739]
[1772130003709,4.07698868,84.99,84.938,14.44193739]
[1772130004513,4.07698868,84.985,84.938,3.84643739]
[1772130004714,4.07698868,84.985,84.921,3.84643739]
[1772130005007,10.5904,84.98,84.934,10.596]
[1772130005311,4.07698868,84.985,84.921,3.84643739]
[1772130005712,4.07698868,84.985,84.94,10.5952]
[1772130006013,4.07698868,84.985,84.938,3.84643739]
[1772130007116,4.07698868,84.985,84.949,10.5942]
[1772130007419,4.07698868,84.985,84.9,29.74768995]
[1772130007420,4.07698868,85.002,84.942,3.84643739]
[1772130008319,10.588,85.0,84.955,10.5934]
[1772130008816,4.07698868,84.989,84.921,3.84643739]
[1772130009318,10.5915,84.971,84.932,10.5963]
[1772130009506,4.07698868,84.976,84.932,10.5963]
[1772130010613,4.07698868,84.976,84.891,3.81997349]
[1772130010812,3.86173416,84.969,84.891,3.81997349]
[1772130011419,10.5943,84.949,84.9,14.42027349]
[1772130011619,14.45603416,84.949,84.9,14.42027349]
[1772130011819,3.86173416,84.949,84.9,3.81997349]
[1772130012617,3.86173416,84.969,84.9,3.81997349]
[1772130013325,8.54698995,84.97,84.907,10.5993]
[1772130013326,3.86173416,84.956,84.907,10.5993]
[1772130013820,3.86173416,84.956,84.9,3.81997349]
[1772130013821,3.86173416,84.954,84.9,3.81997349]
[1772130014620,10.594,84.951,84.901,10.6001]
[1772130016021,3.86173416,84.943,84.901,3.81997349]
[1772130016413,3.86173416,84.969,84.901,3.81997349]
[1772130018013,3.86173416,84.957,84.911,10.599]
[1772130019018,10.5938,84.953,84.911,10.599]
[1772130020722,3.86173416,84.95,84.901,3.81997349]
[1772130021718,10.5943,84.949,84.902,10.6]
[1772130021922,3.86173416,84.948,84.887,3.81997349]
[1772130022927,3.86173416,84.935,84.888,10.6017]
[1772130025119,3.86173416,84.935,84.892,10.6013]
[1772130025327,3.19443986,84.93,84.889,3.81997349]
[1772130025718,3.86173416,84.959,84.901,3.81997349]
[1772130025919,10.5943,84.949,84.901,3.81997349]
[1772130026519,10.5943,84.949,84.84,165.0101]
[1772130026520,3.19443986,84.92,84.842,21.2151]
[1772130026826,3.19443986,84.92,84.861,3.81997349]
[1772130027824,10.5981,84.918,84.877,10.6032]
[1772130028024,3.19443986,84.9,84.854,3.81997349]
[1772130028222,3.19443986,84.91,84.861,3.81997349]
[1772130029021,3.19443986,84.91,84.787,177.0]
[1772130029022,3.86173416,84.899,84.828,3.81997349]
[1772130029215,3.19443986,84.88,84.831,3.81997349]
[1772130029622,3.19443986,84.88,84.835,10.6084]
[1772130030527,3.86173416,84.889,84.835,3.81997349]
[1772130031219,3.86173416,84.889,84.849,10.6067]
[1772130031624,3.86173416,84.889,84.841,3.81997349]
[1772130031825,3.19443986,84.9,84.851,3.81997349]
[1772130032720,3.86173416,84.906,84.851,3.81997349]
[1772130032924,7.05617402,84.92,84.861,3.81997349]
[1772130033724,3.86173416,84.908,84.862,10.605]
[1772130033925,3.86173416,84.908,84.862,3.81997349]
[1772130034125,3.19443986,84.92,84.862,3.81997349]
[1772130034621,3.19443986,84.92,84.875,10.6033]
[1772130035019,10.598,84.919,84.876,3.81997349]
[1772130035522,3.19443986,84.92,84.876,3.81997349]
[1772130036116,3.86173416,84.923,84.885,10.6022]
[1772130039326,10.5969,84.928,84.885,10.6022]
[1772130041127,3.19443986,84.93,84.885,3.96381639]
[1772130042217,3.75271697,84.937,84.898,10.6005]
[1772130044426,3.75271697,84.937,84.898,14.56431639]
[1772130045225,3.75357535,84.929,84.891,10.6014]
[1772130045422,3.75357535,84.929,84.885,3.96381639]
[1772130047129,14.35037535,84.929,84.886,14.56581639]
[1772130047328,3.75357535,84.928,84.886,14.56581639]
[1772130048630,3.75357535,84.928,84.893,10.6012]
[1772130049524,6.94801521,84.9,84.84,3.19443986]
[1772130049728,6.94801521,84.9,84.841,3.96381639]
[1772130049922,3.75357535,84.898,84.86,10.6053]
[1772130050523,3.75357535,84.898,84.866,10.6045]
[1772130051330,10.5995,84.907,84.866,10.6045]
[1772130053133,14.35307535,84.907,84.866,10.6045]
[1772130053630,3.19443986,84.9,84.858,10.6055]
[1772130053833,14.32466083,84.95,84.768,176.97500747]
[1772130053834,3.75357535,84.879,84.817,3.96381639]
[1772130054029,3.75357535,84.879,84.831,3.96381639]
[1772130054229,3.75357535,84.879,84.84,3.19443986]
[1772130054428,3.75357535,84.879,84.831,3.96381639]
[1772130056233,3.19443986,84.9,84.845,3.96381639]
[1772130056431,3.19443986,84.9,84.851,3.96381639]
[1772130056824,3.19443986,84.9,84.86,10.6053]
[1772130057026,3.75357535,84.904,84.861,3.96381639]
[1772130057427,10.6001,84.903,84.861,3.96381639]
[1772130057933,10.6001,84.903,84.862,10.605]
[1772130058533,3.75357535,84.904,84.862,10.605]
[1772130058723,3.75357535,84.904,84.87,10.604]
[1772130059130,6.94990004,84.92,84.875,14.56721639]
[1772130059428,3.75357535,84.92,84.876,3.96381639]
[1772130060132,3.75357535,84.92,84.88,13.79912469]
[1772130060526,3.75357535,84.92,84.886,10.602]
[1772130060927,3.75357535,84.942,84.89,3.19632469]
[1772130061133,3.75357535,84.966,84.92,3.19632469]
[1772130061536,14.34577535,84.966,84.92,3.19632469]
[1772130062133,3.75357535,84.959,84.91,3.19632469]
[1772130062331,3.75357535,84.949,84.9,3.96381639]
[1772130062730,3.75357535,84.949,84.89,3.19632469]
[1772130063638,3.75357535,84.949,84.89,7.16014108]
[1772130063938,3.75357535,84.948,84.893,10.6011]
[1772130064641,3.75357535,84.948,84.901,10.6002]
[1772130066148,3.75357535,84.948,84.901,14.56401639]
[1772130068437,3.75357535,84.939,84.892,10.6013]
[1772130069040,3.75357535,84.939,84.896,10.6008]
[1772130069239,3.75357535,84.953,84.901,3.96381639]
[1772130070438,3.91603396,84.949,84.901,3.96381639]
[1772130070845,3.91603396,84.949,84.903,10.5999]
[1772130071046,3.91603396,84.939,84.884,3.90013936]
[1772130071441,3.91603396,84.939,84.885,10.6022]
[1772130071644,3.91603396,84.939,84.885,14.50233936]
[1772130072140,3.91603396,84.939,84.888,3.90013936]
[1772130072141,14.51163396,84.939,84.888,3.90013936]
[1772130073746,3.91603396,84.939,84.891,3.90013936]
[1772130074941,3.91603396,84.939,84.899,3.90013936]
[1772130075942,3.91603396,84.939,84.895,10.6009]
[1772130076139,3.91603396,84.939,84.884,3.90013936]
[1772130076745,3.91603396,84.921,84.87,3.90013936]
[1772130078047,3.91603396,84.921,84.885,10.6022]
[1772130078448,3.91603396,84.921,84.87,3.90013936]
[1772130079150,10.5979,84.92,84.878,10.6031]
[1772130079346,3.91603396,84.92,84.855,3.90013936]
[1772130079546,8.55523988,84.92,84.855,3.90013936]
[1772130079746,14.51623396,84.902,84.858,10.6056]
[1772130079948,3.91603396,84.901,84.858,10.6056]
[1772130080650,8.55523988,84.92,84.855,3.90013936]
[1772130080651,14.51663396,84.898,84.855,3.90013936]
[1772130080851,3.91603396,84.897,84.832,3.90013936]
[1772130081053,3.91603396,84.88,84.832,3.90013936]
[1772130081253,3.91603396,84.899,84.832,3.90013936]
[1772130081649,3.91603396,84.899,84.85,3.90013936]
[1772130082552,3.91603396,84.899,84.835,3.90013936]
[1772130083753,8.55523988,84.92,84.835,3.90013936]
[1772130083754,3.91603396,84.895,84.835,3.90013936]
[1772130085948,3.91603396,84.895,84.848,3.90013936]
[1772130088061,3.91603396,84.895,84.854,10.606]
[1772130088868,3.91603396,84.895,84.861,10.6052]
[1772130090571,10.5987,84.913,84.868,3.90013936]
[1772130091071,14.51393396,84.92,84.876,10.6033]
[1772130091270,3.91603396,84.919,84.876,10.6033]
[1772130091466,3.91603396,84.919,84.877,3.90013936]
[1772130092172,10.5983,84.917,84.877,3.90013936]
[1772130092375,3.91603396,84.916,84.876,10.6033]
[1772130092774,10.5975,84.923,84.881,10.6026]
[1772130093775,3.19479881,84.92,84.881,10.6026]
[1772130095075,3.91603396,84.918,84.86,3.19479881]
[1772130095274,3.91603396,84.899,84.841,3.90013936]
[1772130096478,14.5213392,84.894,84.85,10.6065]
[1772130096677,3.9201392,84.889,84.841,3.90013936]
[1772130097077,3.19479881,84.88,84.841,3.90013936]
[1772130097277,3.9201392,84.889,84.841,3.90013936]
[1772130097477,3.9201392,84.884,84.809,3.63018183]
[1772130097674,3.9201392,84.869,84.809,3.63018183]
[1772130098074,3.9201392,84.863,84.809,3.63018183]
[1772130099577,3.9201392,84.863,84.811,3.90350205]
[1772130099776,3.78691583,84.887,84.811,3.90350205]
[1772130100177,3.78691583,84.881,84.826,3.90350205]
[1772130101384,3.78691583,84.895,84.826,3.90350205]
[1772130101882,3.78691583,84.891,84.838,10.608]
[1772130103383,3.78691583,84.879,84.826,3.90350205]
[1772130103885,3.78691583,84.868,84.818,10.6105]
[1772130104982,3.78691583,84.868,84.826,10.6095]
[1772130106682,14.39131583,84.868,84.818,14.51410205]
[1772130106987,3.78691583,84.867,84.804,3.90350205]
[1772130107889,3.78691583,84.858,84.808,10.6117]
[1772130108985,3.78691583,84.855,84.799,10.6129]
[1772130109892,10.6076,84.842,84.799,10.6129]
[1772130110686,8.5658888,84.87,84.79,3.90350205]
[1772130110687,3.78691583,84.848,84.806,10.612]
[1772130110893,3.78691583,84.848,84.79,3.90350205]
[1772130111096,3.78691583,84.87,84.791,3.90350205]
[1772130111392,3.78691583,84.87,84.815,3.90350205]
[1772130114893,14.39111583,84.869,84.821,10.6101]
[1772130115093,3.78691583,84.868,84.821,10.6101]
[1772130115288,3.78691583,84.868,84.792,3.90350205]
[1772130115696,3.78691583,84.859,84.792,3.90350205]
[1772130116991,3.78691583,84.858,84.771,3.90350205]
[1772130118095,10.6067,84.85,84.803,10.6124]
[1772130118400,3.78691583,84.858,84.8,3.90350205]
[1772130119992,10.6058,84.857,84.81,10.6115]
[1772130120197,14.39271583,84.857,84.81,10.6115]
[1772130120495,14.39271583,84.857,84.815,10.6109]
[1772130120895,3.78691583,84.877,84.811,3.90350205]
[1772130121599,3.78691583,84.877,84.827,3.90350205]
[1772130122201,10.6022,84.886,84.842,10.6075]
[1772130122794,3.78691583,84.892,84.856,10.6058]
[1772130123100,10.6002,84.901,84.856,10.6058]
[1772130123299,3.78691583,84.909,84.856,3.90350205]
[1772130123999,3.78691583,84.909,84.863,3.90350205]
[1772130125598,3.78691583,84.906,84.83,3.90350205]
[1772130125797,3.78691583,84.904,84.83,3.90350205]
[1772130125997,3.78691583,84.889,84.801,3.90350205]
[1772130126400,3.78691583,84.887,84.801,3.90350205]
[1772130126699,3.78691583,84.885,84.801,3.90350205]
[1772130126895,3.78691583,84.869,84.822,10.61]
[1772130127897,3.78691583,84.869,84.801,3.90350205]
[1772130127898,10.6052,84.861,84.815,10.6109]
[1772130131497,10.6052,84.861,84.821,10.6101]
[1772130133112,10.6061,84.855,84.813,10.6111]
[1772130135399,14.19743859,84.855,84.813,10.6111]
[1772130137413,3.59133859,84.852,84.804,10.6123]
[1772130138911,10.607,84.847,84.81,10.6115]
[1772130139118,3.59133859,84.852,84.79,3.86728396]
[1772130139516,3.59133859,84.85,84.79,3.86728396]
[1772130140217,3.59133859,84.846,84.8,10.6128]
[1772130140417,3.59133859,84.846,84.79,3.86728396]
[1772130140714,3.59133859,84.846,84.77,8.57531087]
[1772130140715,3.59133859,84.846,84.771,3.86728396]
[1772130140913,10.6094,84.828,84.789,10.6142]
[1772130141219,3.59133859,84.827,84.771,3.86728396]
[1772130141415,3.59133859,84.822,84.771,3.86728396]
[1772130141916,3.59133859,84.82,84.763,3.86728396]
[1772130142909,10.6107,84.817,84.77,10.6166]
[1772130143522,10.6086,84.834,84.783,3.86728396]
[1772130143818,3.59133859,84.837,84.783,3.86728396]
[1772130144219,3.59133859,84.836,84.769,3.86728396]
[1772130144415,3.59133859,84.836,84.729,29.15232308]
[1772130144416,3.59133859,84.829,84.753,3.86728396]
[1772130145112,3.59133859,84.829,84.779,10.6154]
[1772130145818,3.59133859,84.829,84.738,21.2411]
[1772130145819,3.59133859,84.849,84.788,3.86728396]
[1772130146014,8.57531087,84.85,84.788,3.86728396]
[1772130146015,3.59133859,84.847,84.788,3.86728396]
[1772130147113,3.59133859,84.845,84.751,3.86728396]
[1772130147320,3.59133859,84.843,84.751,3.86728396]
[1772130147518,3.59133859,84.841,84.751,3.86728396]
[1772130147722,3.59133859,84.839,84.751,3.86728396]
[1772130147925,10.61,84.823,84.778,10.6155]
[1772130148223,3.59133859,84.835,84.778,10.6155]
[1772130148924,3.59133859,84.83,84.778,10.6155]
[1772130150013,10.6104,84.82,84.778,10.6155]
[1772130150414,3.59133859,84.828,84.773,3.86728396]
[1772130151818,8.57531087,84.85,84.773,3.86728396]
[1772130151819,3.59133859,84.824,84.777,10.6156]
[1772130152021,3.59133859,84.824,84.773,3.86728396]
[1772130152325,10.6105,84.819,84.774,10.6161]
[1772130153127,10.611,84.815,84.774,10.6161]
[1772130153820,10.611,84.815,84.773,3.86728396]
[1772130154323,3.59133859,84.818,84.773,3.86728396]
[1772130154523,3.59133859,84.818,84.759,3.86728396]
[1772130155119,164.9512,84.871,84.713,29.15232308]
[1772130155120,3.59133859,84.796,84.741,3.86728396]
[1772130155719,3.62662045,84.794,84.741,3.86728396]
[1772130156120,3.62662045,84.794,84.749,10.6191]
[1772130156625,3.62662045,84.794,84.741,3.86728396]
[1772130157328,3.62662045,84.778,84.711,3.69263288]
[1772130158120,3.62662045,84.799,84.747,3.69263288]
[1772130158627,3.62662045,84.799,84.759,10.6179]
[1772130160925,3.20422928,84.77,84.73,3.72869766]
[1772130161322,3.80482144,84.777,84.73,3.72869766]
[1772130161629,3.20422928,84.77,84.73,3.72869766]
[1772130162331,3.20422928,84.77,84.731,10.6214]
[1772130162832,3.20422928,84.76,84.715,3.72869766]
[1772130163226,3.80482144,84.766,84.721,10.6227]
[1772130165128,8.59097783,84.78,84.715,3.72869766]
[1772130165129,12.39579927,84.78,84.715,3.72869766]
[1772130165324,3.80482144,84.779,84.715,3.72869766]
[1772130166933,3.80482144,84.779,84.737,10.6207]
[1772130168029,3.80482144,84.779,84.744,10.6198]
[1772130168225,3.80482144,84.779,84.728,3.72869766]
[1772130168636,3.80482144,84.779,84.735,10.621]
[1772130169037,3.80482144,84.779,84.728,3.72869766]
[1772130169539,14.42062144,84.777,84.73,10.6216]
[1772130170037,14.42062144,84.777,84.73,14.35029766]
[1772130170336,3.80482144,84.777,84.737,10.6207]
[1772130170632,3.80482144,84.792,84.738,3.72869766]
[1772130170835,3.80482144,84.792,84.759,10.6179]
[1772130171836,14.41722144,84.804,84.759,10.6179]
[1772130172038,3.80482144,84.804,84.766,10.617]
[1772130172735,14.41532144,84.819,84.77,3.72869766]
[1772130172940,3.80482144,84.819,84.77,3.72869766]
[1772130173139,3.80482144,84.851,84.77,3.72869766]
[1772130174439,3.80482144,84.851,84.793,3.72869766]
[1772130176241,3.80482144,84.839,84.731,3.72869766]
[1772130176441,3.80482144,84.839,84.741,3.72869766]
[1772130177239,3.80482144,84.839,84.751,3.72869766]
[1772130177942,3.80482144,84.826,84.77,10.6165]
[1772130179040,3.80482144,84.824,84.77,10.6165]
[1772130179644,3.80482144,84.824,84.765,3.72869766]
[1772130179841,3.80482144,84.813,84.748,3.72869766]
[1772130180339,3.80482144,84.81,84.748,3.72869766]
[1772130180750,3.80482144,84.827,84.748,3.72869766]
[1772130181648,3.80482144,84.827,84.77,3.72869766]
[1772130182253,3.80482144,84.827,84.784,10.6147]
[1772130182653,3.80482144,84.827,84.774,10.616]
[1772130182956,3.80482144,84.825,84.77,3.72869766]
[1772130183249,3.80482144,84.823,84.741,3.72869766]
[1772130183454,3.80482144,84.814,84.754,3.72869766]
[1772130184950,3.80482144,84.809,84.757,10.6181]
[1772130185958,10.6121,84.807,84.757,10.6181]
[1772130186155,3.80482144,84.806,84.747,10.6194]
[1772130186352,10.6151,84.783,84.739,3.72869766]
[1772130186551,3.80482144,84.782,84.723,3.72869766]
[1772130186951,3.80482144,84.779,84.729,10.6216]
[1772130187148,3.80482144,84.779,84.723,3.72869766]
[1772130187661,14.42172144,84.768,84.715,10.6234]
[1772130187860,3.80482144,84.767,84.69,12.3079054]
[1772130188056,3.80482144,84.767,84.691,3.72869766]
[1772130189655,3.80482144,84.767,84.715,3.88440873]
[1772130190365,3.80482144,84.767,84.699,3.88440873]
[1772130190760,3.86304961,84.75,84.7,10.6253]
[1772130191066,3.86304961,84.75,84.699,3.88440873]
[1772130191663,3.86304961,84.75,84.707,10.6244]
[1772130192565,3.86304961,84.748,84.699,14.50980873]
[1772130193065,3.86304961,84.739,84.69,10.6266]
[1772130193562,3.86304961,84.739,84.683,3.88440873]
[1772130193563,3.86304961,84.737,84.683,3.88440873]
[1772130194161,3.86304961,84.737,84.648,3.88440873]
[1772130194662,3.86304961,84.729,84.672,14.51320873]
[1772130195053,3.86304961,84.729,84.673,3.88440873]
[1772130195256,3.86304961,84.729,84.683,10.6275]
[1772130196161,3.86304961,84.729,84.675,10.6285]
[1772130196865,10.6219,84.728,84.683,10.6275]
[1772130197162,3.86304961,84.729,84.683,10.6275]
[1772130198063,3.86304961,84.747,84.683,3.88440873]
[1772130199164,165.1078,84.791,84.668,3.88440873]
[1772130199165,3.86304961,84.723,84.668,3.88440873]
[1772130199668,3.86304961,84.738,84.686,10.6271]
[1772130200960,14.48394961,84.736,84.686,10.6271]
[1772130201163,3.86304961,84.735,84.686,10.6271]
[1772130202362,3.86304961,84.735,84.693,10.6262]
[1772130203970,14.48404961,84.735,84.693,10.6262]
[1772130204165,3.86304961,84.735,84.667,3.88440873]
[1772130205670,14.48574961,84.721,84.677,10.6282]
[1772130206169,10.6232,84.718,84.677,10.6282]
[1772130206566,10.6202,84.741,84.7,14.50970873]
[1772130206766,3.86304961,84.74,84.684,3.88440873]
[1772130207168,3.86304961,84.738,84.691,10.6264]
[1772130207869,3.86304961,84.735,84.683,10.6274]
[1772130208076,3.86304961,84.719,84.648,3.88440873]
[1772130208477,10.6236,84.715,84.648,3.88440873]
[1772130208677,10.6236,84.715,84.676,10.6284]
[1772130210680,10.6243,84.709,84.669,10.6292]
[1772130211375,3.86304961,84.719,84.651,3.88440873]
[1772130211575,3.86304961,84.7,84.651,14.51580873]
[1772130211979,10.6265,84.692,84.651,14.51580873]
[1772130212178,3.86304961,84.739,84.652,3.88440873]
[1772130213074,8.57920774,84.74,84.668,3.88440873]
[1772130213075,3.86304961,84.724,84.668,3.88440873]
[1772130213279,3.86304961,84.738,84.668,3.88440873]
[1772130214884,10.6214,84.732,84.688,10.6268]
[1772130216183,3.86304961,84.738,84.694,10.626]
[1772130216983,3.86304961,84.738,84.687,10.6269]
[1772130217783,10.6217,84.73,84.693,10.6262]
[1772130219882,10.6217,84.73,84.686,10.627]
[1772130220185,10.6224,84.724,84.686,10.627]
[1772130220385,3.79958874,84.723,84.667,3.80924738]
[1772130221080,3.79958874,84.739,84.683,3.80924738]
[1772130221886,10.6215,84.732,84.692,10.6263]
[1772130223687,3.79958874,84.739,84.697,3.80924738]
[1772130224191,3.79958874,84.752,84.697,3.80924738]
[1772130224389,3.79958874,84.768,84.707,3.80924738]
[1772130224690,3.79958874,84.768,84.711,3.80924738]
[1772130224890,3.79958874,84.784,84.726,3.80924738]
[1772130225588,14.58839236,84.825,84.711,3.80924738]
[1772130225589,3.79958874,84.766,84.711,3.80924738]
[1772130226492,3.79958874,84.766,84.728,10.6218]
[1772130227586,3.79958874,84.766,84.72,10.6228]
[1772130227787,10.6177,84.762,84.72,10.6228]
[1772130228183,3.79958874,84.766,84.72,10.6228]
[1772130228184,3.79958874,84.766,84.72,14.43204738]
[1772130228987,10.6173,84.765,84.72,14.43204738]
[1772130230691,3.79958874,84.761,84.702,10.6251]
[1772130231186,3.79958874,84.759,84.702,10.6251]
[1772130231388,3.79958874,84.759,84.709,10.6242]
[1772130232794,10.6183,84.757,84.712,14.43294738]
[1772130232990,10.6183,84.757,84.672,21.2577]
[1772130232991,10.6183,84.757,84.713,3.80924738]
[1772130233591,3.79958874,84.776,84.717,3.80924738]
[1772130233795,3.79958874,84.774,84.702,3.80924738]
[1772130233996,3.79958874,84.772,84.702,3.80924738]
[1772130234204,3.79958874,84.77,84.702,3.80924738]
[1772130234395,8.57920774,84.78,84.702,3.80924738]
[1772130234396,10.6194,84.748,84.702,3.80924738]
[1772130234594,3.79958874,84.747,84.702,3.80924738]
[1772130235196,10.6198,84.745,84.703,10.625]
[1772130235398,3.79958874,84.744,84.671,3.80924738]
[1772130236890,10.6205,84.739,84.695,10.626]
[1772130237601,3.79958874,84.744,84.702,10.6251]
[1772130238900,10.62,84.743,84.702,10.6251]
[1772130239290,3.79958874,84.744,84.651,21.263]
[1772130239291,3.20899961,84.74,84.695,10.626]
[1772130239500,10.6221,84.727,84.691,3.80924738]
[1772130239795,10.6221,84.727,84.68,7.01824699]
[1772130240001,10.6221,84.727,84.681,3.80924738]
[1772130240205,3.79958874,84.744,84.681,3.80924738]
[1772130240502,3.79958874,84.739,84.687,3.80924738]
[1772130240899,10.6207,84.738,84.696,10.6259]
[1772130241105,3.79958874,84.729,84.687,3.80924738]
[1772130241604,3.20899961,84.72,84.671,3.80924738]
[1772130241905,3.79958874,84.719,84.671,3.80924738]
[1772130242406,3.79958874,84.719,84.673,3.80924738]
[1772130242602,7.00858835,84.74,84.681,3.80924738]
[1772130243103,3.79958874,84.739,84.69,3.20899961]
[1772130244005,10.6213,84.733,84.69,3.20899961]
[1772130244196,14.42088874,84.733,84.69,3.20899961]
[1772130245303,10.622,84.727,84.69,3.20899961]
[1772130247113,3.79958874,84.722,84.69,3.20899961]
[1772130247315,3.79958874,84.722,84.681,3.80924738]
[1772130247610,10.6229,84.72,84.681,3.80924738]
[1772130249012,10.6229,84.72,84.682,10.6276]
[1772130249213,3.79958874,84.722,84.69,3.20899961]
[1772130249411,3.79958874,84.739,84.7,3.20899961]
[1772130249915,3.20899961,84.75,84.691,3.80924738]
[1772130249916,3.74118697,84.737,84.691,3.80924738]
[1772130250708,3.74118697,84.737,84.692,10.6262]
[1772130250909,3.74118697,84.737,84.693,3.63886725]
[1772130251411,3.74118697,84.735,84.693,3.63886725]
[1772130252914,10.6214,84.732,84.693,3.63886725]
[1772130253409,3.74118697,84.727,84.69,3.20899961]
[1772130253614,3.74118697,84.727,84.678,3.63886725]
[1772130254512,3.74118697,84.727,84.68,3.20899961]
[1772130255916,3.74118697,84.724,84.682,10.6276]
[1772130256111,3.74118697,84.737,84.681,3.63886725]
[1772130256311,3.74118697,84.737,84.691,3.63886725]
[1772130256515,3.74118697,84.737,84.7,3.20899961]
[1772130256718,3.74118697,84.758,84.71,3.20899961]
[1772130256915,3.74118697,84.758,84.711,3.63886725]
[1772130257212,10.619,84.751,84.711,3.63886725]
[1772130257421,3.74118697,84.75,84.71,3.20899961]
[1772130258914,3.74118697,84.75,84.71,13.83299961]
[1772130259215,3.74118697,84.75,84.71,3.20899961]
[1772130259919,10.6192,84.749,84.71,3.20899961]
[1772130260119,3.74118697,84.75,84.71,3.20899961]
[1772130261619,3.74118697,84.769,84.74,3.20899961]
[1772130262013,3.74118697,84.769,84.73,3.20899961]
[1772130262213,10.6178,84.761,84.73,3.20899961]
[1772130262414,3.74118697,84.769,84.73,3.20899961]
[1772130264018,10.6169,84.768,84.73,3.20899961]
[1772130264618,3.74118697,84.769,84.73,3.20899961]
[1772130265207,10.6171,84.766,84.73,3.20899961]
[1772130265411,3.74118697,84.769,84.73,3.20899961]
[1772130266008,3.74118697,84.769,84.73,13.83049961]
[1772130266409,3.20899961,84.78,84.731,3.63886725]
[1772130266617,3.74118697,84.782,84.74,3.20899961]
[1772130267216,3.74118697,84.78,84.731,3.63886725]
[1772130268724,36.57586775,84.826,84.636,527.87850152]
[1772130268725,9.28216528,84.813,84.77,3.20899961]
[1772130268915,3.74118697,84.823,84.771,3.63886725]
[1772130269120,3.74118697,84.821,84.771,3.63886725]
[1772130269425,3.74118697,84.819,84.771,3.63886725]
[1772130269623,3.74118697,84.8,84.756,3.63886725]
[1772130269825,3.74118697,84.8,84.76,3.20899961]
[1772130270828,3.74118697,84.8,84.762,10.6175]
[1772130271022,3.74118697,84.8,84.76,3.20899961]
[1772130271626,3.74118697,84.8,84.761,10.6177]
[1772130273523,3.74118697,84.797,84.741,3.63886725]
[1772130273929,14.35598697,84.785,84.741,3.63886725]
[1772130274126,3.74118697,84.784,84.741,3.63886725]
[1772130275223,3.74118697,84.784,84.742,10.62]
[1772130275425,3.74118697,84.784,84.741,3.63886725]
[1772130277024,10.615,84.783,84.741,14.25906725]
[1772130277228,3.74118697,84.784,84.742,3.63545961]
[1772130277934,3.81307977,84.799,84.751,3.63545961]
[1772130278431,3.81307977,84.799,84.76,3.20899961]
[1772130278732,3.81307977,84.799,84.751,3.63545961]
[1772130279234,14.42607977,84.799,84.755,10.6184]
[1772130279436,14.42607977,84.799,84.755,14.25385961]
[1772130279626,3.81307977,84.799,84.76,3.20899961]
[1772130279831,3.5929745,84.819,84.761,3.67462815]
[1772130280833,10.6112,84.814,84.772,10.6163]
[1772130281335,10.6112,84.814,84.707,165.2686]
[1772130281336,3.5929745,84.789,84.724,3.67462815]
[1772130281631,6.80197411,84.77,84.724,3.67462815]
[1772130281836,165.0294,84.831,84.663,165.3551]
[1772130281837,3.5929745,84.801,84.753,14.29322815]
[1772130282331,3.20899961,84.8,84.753,3.67462815]
[1772130282529,3.5929745,84.799,84.75,3.20899961]
[1772130282731,3.20899961,84.79,84.741,3.67462815]
[1772130283334,10.6146,84.786,84.746,10.6196]
[1772130285838,21.2167,84.837,84.741,3.67462815]
[1772130285839,10.6155,84.779,84.741,3.67462815]
[1772130286039,3.20899961,84.77,84.721,3.67462815]
[1772130286339,6.80197411,84.77,84.721,3.67462815]
[1772130288038,6.80197411,84.77,84.73,10.6216]
[1772130289545,6.80197411,84.77,84.736,10.6208]
[1772130289945,10.6151,84.782,84.736,10.6208]
[1772130290246,3.20899961,84.77,84.736,10.6208]
[1772130290443,3.20899961,84.78,84.743,10.6199]
[1772130291244,10.6155,84.779,84.735,10.6209]